Workbook

Sheet Menu
E26: Empresa: | G26: Empresa ABCDE

Sheet Socios
B10: Empresa: | C10: Empresa ABCDE
B12: CADASTRO DOS SÓCIOS Insira os proprietários da empresa.
B13: NOME | C13: PORCENTAGEM | D13: PREVISÃO DE PRÓ-LABORE MENSAL
B15: João Paulo | C15: 0.2 | D15: 4000
B16: Pedro Alves | C16: 0.2 | D16: 4000
B17: Sócio 3 | C17: 0.2 | D17: 4000
B18: Sócio 4 | C18: 0.2 | D18: 4000
B19: Sócio 5 | C19: 0.2 | D19: 4000

Sheet Impostos
B10: Empresa: | C10: Empresa ABCDE
B12: CADASTRO DOS IMPOSTOS Insira os impostos referentes às retiradas dos sócios.
B13: IMPOSTO | C13: PORCENTAGEM
B15: Imposto 1 | C15: 0.05
B16: Imposto 2 | C16: 0.02

Sheet Historico
B10: Empresa: | C10: Empresa ABCDE
B12: Histórico de Retiradas Insira as retiradas realizadas.
B13: SÓCIO | C13: DATA DA RETIRADA | D13: VALOR | E13: =IF(Impostos!B15="","",Impostos!B15) -> Imposto 1 | F13: =IF(Impostos!B16="","",Impostos!B16) -> Imposto 2 | G13: =IF(Impostos!B17="","",Impostos!B17) ->  | H13: =IF(Impostos!B18="","",Impostos!B18) ->  | I13: =IF(Impostos!B19="","",Impostos!B19) ->  | J13: TOTAL DE IMPOSTOS | K13: VALOR LÍQUIDO
N14: Mês
B15: João Paulo | C15: 2020-05-01 | D15: 3000 | E15: =D15*Impostos!$C$15 -> 150 | F15: =D15*Impostos!$C$16 -> 60 | G15: =D15*Impostos!$C$17 -> 0 | H15: =D15*Impostos!$C$18 -> 0 | I15: =D15*Impostos!$C$19 -> 0 | J15: =SUM(E15:I15) -> 210 | K15: =D15-J15 -> 2790 | N15: =IF(C15="","",MONTH(C15)) -> 5
B16: Pedro Alves | C16: 2020-06-01 | D16: 2000 | E16: =D16*Impostos!$C$15 -> 100 | F16: =D16*Impostos!$C$16 -> 40 | G16: =D16*Impostos!$C$17 -> 0 | H16: =D16*Impostos!$C$18 -> 0 | I16: =D16*Impostos!$C$19 -> 0 | J16: =SUM(E16:I16) -> 140 | K16: =D16-J16 -> 1860 | N16: =IF(C16="","",MONTH(C16)) -> 6
B17: João Paulo | C17: 2020-07-01 | D17: 1500 | E17: =D17*Impostos!$C$15 -> 75 | F17: =D17*Impostos!$C$16 -> 30 | G17: =D17*Impostos!$C$17 -> 0 | H17: =D17*Impostos!$C$18 -> 0 | I17: =D17*Impostos!$C$19 -> 0 | J17: 105 | K17: 1395 | N17: 7
B18: João Paulo | C18: 2020-08-01 | D18: 2000 | E18: =D18*Impostos!$C$15 -> 100 | F18: =D18*Impostos!$C$16 -> 40 | G18: =D18*Impostos!$C$17 -> 0 | H18: =D18*Impostos!$C$18 -> 0 | I18: =D18*Impostos!$C$19 -> 0 | J18: 140 | K18: 1860 | N18: 8
B19: Sócio 3 | C19: 2020-10-01 | D19: 1000 | E19: =D19*Impostos!$C$15 -> 50 | F19: =D19*Impostos!$C$16 -> 20 | G19: =D19*Impostos!$C$17 -> 0 | H19: =D19*Impostos!$C$18 -> 0 | I19: =D19*Impostos!$C$19 -> 0 | J19: 70 | K19: 930 | N19: 10
B20: Sócio 4 | C20: 2020-10-02 | D20: 1000 | E20: =D20*Impostos!$C$15 -> 50 | F20: =D20*Impostos!$C$16 -> 20 | G20: =D20*Impostos!$C$17 -> 0 | H20: =D20*Impostos!$C$18 -> 0 | I20: =D20*Impostos!$C$19 -> 0 | J20: =SUM(E20:I20) -> 70 | K20: =D20-J20 -> 930 | N20: 10
B21: Sócio 5 | C21: 2020-10-03 | D21: 1000 | E21: =D21*Impostos!$C$15 -> 50 | F21: =D21*Impostos!$C$16 -> 20 | G21: =D21*Impostos!$C$17 -> 0 | H21: =D21*Impostos!$C$18 -> 0 | I21: =D21*Impostos!$C$19 -> 0 | J21: 70 | K21: 930 | N21: 10
E22: =D22*Impostos!$C$15 -> 0 | F22: =D22*Impostos!$C$16 -> 0 | G22: =D22*Impostos!$C$17 -> 0 | H22: =D22*Impostos!$C$18 -> 0 | I22: =D22*Impostos!$C$19 -> 0 | J22: 0 | K22: 0
E23: =D23*Impostos!$C$15 -> 0 | F23: =D23*Impostos!$C$16 -> 0 | G23: =D23*Impostos!$C$17 -> 0 | H23: =D23*Impostos!$C$18 -> 0 | I23: =D23*Impostos!$C$19 -> 0 | J23: 0 | K23: 0
E24: =D24*Impostos!$C$15 -> 0 | F24: =D24*Impostos!$C$16 -> 0 | G24: =D24*Impostos!$C$17 -> 0 | H24: =D24*Impostos!$C$18 -> 0 | I24: =D24*Impostos!$C$19 -> 0 | J24: 0 | K24: 0
E25: =D25*Impostos!$C$15 -> 0 | F25: =D25*Impostos!$C$16 -> 0 | G25: =D25*Impostos!$C$17 -> 0 | H25: =D25*Impostos!$C$18 -> 0 | I25: =D25*Impostos!$C$19 -> 0 | J25: 0 | K25: 0
E26: =D26*Impostos!$C$15 -> 0 | F26: =D26*Impostos!$C$16 -> 0 | G26: =D26*Impostos!$C$17 -> 0 | H26: =D26*Impostos!$C$18 -> 0 | I26: =D26*Impostos!$C$19 -> 0 | J26: 0 | K26: 0
E27: =D27*Impostos!$C$15 -> 0 | F27: =D27*Impostos!$C$16 -> 0 | G27: =D27*Impostos!$C$17 -> 0 | H27: =D27*Impostos!$C$18 -> 0 | I27: =D27*Impostos!$C$19 -> 0 | J27: 0 | K27: 0
E28: =D28*Impostos!$C$15 -> 0 | F28: =D28*Impostos!$C$16 -> 0 | G28: =D28*Impostos!$C$17 -> 0 | H28: =D28*Impostos!$C$18 -> 0 | I28: =D28*Impostos!$C$19 -> 0 | J28: 0 | K28: 0
E29: =D29*Impostos!$C$15 -> 0 | F29: =D29*Impostos!$C$16 -> 0 | G29: =D29*Impostos!$C$17 -> 0 | H29: =D29*Impostos!$C$18 -> 0 | I29: =D29*Impostos!$C$19 -> 0 | J29: 0 | K29: 0
E30: =D30*Impostos!$C$15 -> 0 | F30: =D30*Impostos!$C$16 -> 0 | G30: =D30*Impostos!$C$17 -> 0 | H30: =D30*Impostos!$C$18 -> 0 | I30: =D30*Impostos!$C$19 -> 0 | J30: 0 | K30: 0
E31: =D31*Impostos!$C$15 -> 0 | F31: =D31*Impostos!$C$16 -> 0 | G31: =D31*Impostos!$C$17 -> 0 | H31: =D31*Impostos!$C$18 -> 0 | I31: =D31*Impostos!$C$19 -> 0 | J31: 0 | K31: 0
E32: =D32*Impostos!$C$15 -> 0 | F32: =D32*Impostos!$C$16 -> 0 | G32: =D32*Impostos!$C$17 -> 0 | H32: =D32*Impostos!$C$18 -> 0 | I32: =D32*Impostos!$C$19 -> 0 | J32: 0 | K32: 0
E33: =D33*Impostos!$C$15 -> 0 | F33: =D33*Impostos!$C$16 -> 0 | G33: =D33*Impostos!$C$17 -> 0 | H33: =D33*Impostos!$C$18 -> 0 | I33: =D33*Impostos!$C$19 -> 0 | J33: 0 | K33: 0
E34: =D34*Impostos!$C$15 -> 0 | F34: =D34*Impostos!$C$16 -> 0 | G34: =D34*Impostos!$C$17 -> 0 | H34: =D34*Impostos!$C$18 -> 0 | I34: =D34*Impostos!$C$19 -> 0 | J34: 0 | K34: 0
E35: =D35*Impostos!$C$15 -> 0 | F35: =D35*Impostos!$C$16 -> 0 | G35: =D35*Impostos!$C$17 -> 0 | H35: =D35*Impostos!$C$18 -> 0 | I35: =D35*Impostos!$C$19 -> 0 | J35: 0 | K35: 0
E36: =D36*Impostos!$C$15 -> 0 | F36: =D36*Impostos!$C$16 -> 0 | G36: =D36*Impostos!$C$17 -> 0 | H36: =D36*Impostos!$C$18 -> 0 | I36: =D36*Impostos!$C$19 -> 0 | J36: 0 | K36: 0
E37: =D37*Impostos!$C$15 -> 0 | F37: =D37*Impostos!$C$16 -> 0 | G37: =D37*Impostos!$C$17 -> 0 | H37: =D37*Impostos!$C$18 -> 0 | I37: =D37*Impostos!$C$19 -> 0 | J37: 0 | K37: 0
E38: =D38*Impostos!$C$15 -> 0 | F38: =D38*Impostos!$C$16 -> 0 | G38: =D38*Impostos!$C$17 -> 0 | H38: =D38*Impostos!$C$18 -> 0 | I38: =D38*Impostos!$C$19 -> 0 | J38: 0 | K38: 0
E39: =D39*Impostos!$C$15 -> 0 | F39: =D39*Impostos!$C$16 -> 0 | G39: =D39*Impostos!$C$17 -> 0 | H39: =D39*Impostos!$C$18 -> 0 | I39: =D39*Impostos!$C$19 -> 0 | J39: 0 | K39: 0
E40: =D40*Impostos!$C$15 -> 0 | F40: =D40*Impostos!$C$16 -> 0 | G40: =D40*Impostos!$C$17 -> 0 | H40: =D40*Impostos!$C$18 -> 0 | I40: =D40*Impostos!$C$19 -> 0 | J40: 0 | K40: 0
E41: =D41*Impostos!$C$15 -> 0 | F41: =D41*Impostos!$C$16 -> 0 | G41: =D41*Impostos!$C$17 -> 0 | H41: =D41*Impostos!$C$18 -> 0 | I41: =D41*Impostos!$C$19 -> 0 | J41: 0 | K41: 0
E42: =D42*Impostos!$C$15 -> 0 | F42: =D42*Impostos!$C$16 -> 0 | G42: =D42*Impostos!$C$17 -> 0 | H42: =D42*Impostos!$C$18 -> 0 | I42: =D42*Impostos!$C$19 -> 0 | J42: 0 | K42: 0
E43: =D43*Impostos!$C$15 -> 0 | F43: =D43*Impostos!$C$16 -> 0 | G43: =D43*Impostos!$C$17 -> 0 | H43: =D43*Impostos!$C$18 -> 0 | I43: =D43*Impostos!$C$19 -> 0 | J43: 0 | K43: 0
E44: =D44*Impostos!$C$15 -> 0 | F44: =D44*Impostos!$C$16 -> 0 | G44: =D44*Impostos!$C$17 -> 0 | H44: =D44*Impostos!$C$18 -> 0 | I44: =D44*Impostos!$C$19 -> 0 | J44: 0 | K44: 0
E45: =D45*Impostos!$C$15 -> 0 | F45: =D45*Impostos!$C$16 -> 0 | G45: =D45*Impostos!$C$17 -> 0 | H45: =D45*Impostos!$C$18 -> 0 | I45: =D45*Impostos!$C$19 -> 0 | J45: 0 | K45: 0
E46: =D46*Impostos!$C$15 -> 0 | F46: =D46*Impostos!$C$16 -> 0 | G46: =D46*Impostos!$C$17 -> 0 | H46: =D46*Impostos!$C$18 -> 0 | I46: =D46*Impostos!$C$19 -> 0 | J46: 0 | K46: 0
E47: =D47*Impostos!$C$15 -> 0 | F47: =D47*Impostos!$C$16 -> 0 | G47: =D47*Impostos!$C$17 -> 0 | H47: =D47*Impostos!$C$18 -> 0 | I47: =D47*Impostos!$C$19 -> 0 | J47: 0 | K47: 0
E48: =D48*Impostos!$C$15 -> 0 | F48: =D48*Impostos!$C$16 -> 0 | G48: =D48*Impostos!$C$17 -> 0 | H48: =D48*Impostos!$C$18 -> 0 | I48: =D48*Impostos!$C$19 -> 0 | J48: 0 | K48: 0
E49: =D49*Impostos!$C$15 -> 0 | F49: =D49*Impostos!$C$16 -> 0 | G49: =D49*Impostos!$C$17 -> 0 | H49: =D49*Impostos!$C$18 -> 0 | I49: =D49*Impostos!$C$19 -> 0 | J49: 0 | K49: 0
E50: =D50*Impostos!$C$15 -> 0 | F50: =D50*Impostos!$C$16 -> 0 | G50: =D50*Impostos!$C$17 -> 0 | H50: =D50*Impostos!$C$18 -> 0 | I50: =D50*Impostos!$C$19 -> 0 | J50: 0 | K50: 0
E51: =D51*Impostos!$C$15 -> 0 | F51: =D51*Impostos!$C$16 -> 0 | G51: =D51*Impostos!$C$17 -> 0 | H51: =D51*Impostos!$C$18 -> 0 | I51: =D51*Impostos!$C$19 -> 0 | J51: 0 | K51: 0
E52: =D52*Impostos!$C$15 -> 0 | F52: =D52*Impostos!$C$16 -> 0 | G52: =D52*Impostos!$C$17 -> 0 | H52: =D52*Impostos!$C$18 -> 0 | I52: =D52*Impostos!$C$19 -> 0 | J52: 0 | K52: 0
E53: =D53*Impostos!$C$15 -> 0 | F53: =D53*Impostos!$C$16 -> 0 | G53: =D53*Impostos!$C$17 -> 0 | H53: =D53*Impostos!$C$18 -> 0 | I53: =D53*Impostos!$C$19 -> 0 | J53: 0 | K53: 0
E54: =D54*Impostos!$C$15 -> 0 | F54: =D54*Impostos!$C$16 -> 0 | G54: =D54*Impostos!$C$17 -> 0 | H54: =D54*Impostos!$C$18 -> 0 | I54: =D54*Impostos!$C$19 -> 0 | J54: 0 | K54: 0
E55: =D55*Impostos!$C$15 -> 0 | F55: =D55*Impostos!$C$16 -> 0 | G55: =D55*Impostos!$C$17 -> 0 | H55: =D55*Impostos!$C$18 -> 0 | I55: =D55*Impostos!$C$19 -> 0 | J55: 0 | K55: 0
E56: =D56*Impostos!$C$15 -> 0 | F56: =D56*Impostos!$C$16 -> 0 | G56: =D56*Impostos!$C$17 -> 0 | H56: =D56*Impostos!$C$18 -> 0 | I56: =D56*Impostos!$C$19 -> 0 | J56: 0 | K56: 0
E57: =D57*Impostos!$C$15 -> 0 | F57: =D57*Impostos!$C$16 -> 0 | G57: =D57*Impostos!$C$17 -> 0 | H57: =D57*Impostos!$C$18 -> 0 | I57: =D57*Impostos!$C$19 -> 0 | J57: 0 | K57: 0
E58: =D58*Impostos!$C$15 -> 0 | F58: =D58*Impostos!$C$16 -> 0 | G58: =D58*Impostos!$C$17 -> 0 | H58: =D58*Impostos!$C$18 -> 0 | I58: =D58*Impostos!$C$19 -> 0 | J58: 0 | K58: 0
E59: =D59*Impostos!$C$15 -> 0 | F59: =D59*Impostos!$C$16 -> 0 | G59: =D59*Impostos!$C$17 -> 0 | H59: =D59*Impostos!$C$18 -> 0 | I59: =D59*Impostos!$C$19 -> 0 | J59: 0 | K59: 0
E60: =D60*Impostos!$C$15 -> 0 | F60: =D60*Impostos!$C$16 -> 0 | G60: =D60*Impostos!$C$17 -> 0 | H60: =D60*Impostos!$C$18 -> 0 | I60: =D60*Impostos!$C$19 -> 0 | J60: 0 | K60: 0
E61: =D61*Impostos!$C$15 -> 0 | F61: =D61*Impostos!$C$16 -> 0 | G61: =D61*Impostos!$C$17 -> 0 | H61: =D61*Impostos!$C$18 -> 0 | I61: =D61*Impostos!$C$19 -> 0 | J61: 0 | K61: 0
E62: =D62*Impostos!$C$15 -> 0 | F62: =D62*Impostos!$C$16 -> 0 | G62: =D62*Impostos!$C$17 -> 0 | H62: =D62*Impostos!$C$18 -> 0 | I62: =D62*Impostos!$C$19 -> 0 | J62: 0 | K62: 0
E63: =D63*Impostos!$C$15 -> 0 | F63: =D63*Impostos!$C$16 -> 0 | G63: =D63*Impostos!$C$17 -> 0 | H63: =D63*Impostos!$C$18 -> 0 | I63: =D63*Impostos!$C$19 -> 0 | J63: 0 | K63: 0
E64: =D64*Impostos!$C$15 -> 0 | F64: =D64*Impostos!$C$16 -> 0 | G64: =D64*Impostos!$C$17 -> 0 | H64: =D64*Impostos!$C$18 -> 0 | I64: =D64*Impostos!$C$19 -> 0 | J64: 0 | K64: 0
E65: =D65*Impostos!$C$15 -> 0 | F65: =D65*Impostos!$C$16 -> 0 | G65: =D65*Impostos!$C$17 -> 0 | H65: =D65*Impostos!$C$18 -> 0 | I65: =D65*Impostos!$C$19 -> 0 | J65: 0 | K65: 0
E66: =D66*Impostos!$C$15 -> 0 | F66: =D66*Impostos!$C$16 -> 0 | G66: =D66*Impostos!$C$17 -> 0 | H66: =D66*Impostos!$C$18 -> 0 | I66: =D66*Impostos!$C$19 -> 0 | J66: 0 | K66: 0
E67: =D67*Impostos!$C$15 -> 0 | F67: =D67*Impostos!$C$16 -> 0 | G67: =D67*Impostos!$C$17 -> 0 | H67: =D67*Impostos!$C$18 -> 0 | I67: =D67*Impostos!$C$19 -> 0 | J67: 0 | K67: 0
E68: =D68*Impostos!$C$15 -> 0 | F68: =D68*Impostos!$C$16 -> 0 | G68: =D68*Impostos!$C$17 -> 0 | H68: =D68*Impostos!$C$18 -> 0 | I68: =D68*Impostos!$C$19 -> 0 | J68: 0 | K68: 0
E69: =D69*Impostos!$C$15 -> 0 | F69: =D69*Impostos!$C$16 -> 0 | G69: =D69*Impostos!$C$17 -> 0 | H69: =D69*Impostos!$C$18 -> 0 | I69: =D69*Impostos!$C$19 -> 0 | J69: 0 | K69: 0
E70: =D70*Impostos!$C$15 -> 0 | F70: =D70*Impostos!$C$16 -> 0 | G70: =D70*Impostos!$C$17 -> 0 | H70: =D70*Impostos!$C$18 -> 0 | I70: =D70*Impostos!$C$19 -> 0 | J70: 0 | K70: 0
E71: =D71*Impostos!$C$15 -> 0 | F71: =D71*Impostos!$C$16 -> 0 | G71: =D71*Impostos!$C$17 -> 0 | H71: =D71*Impostos!$C$18 -> 0 | I71: =D71*Impostos!$C$19 -> 0 | J71: 0 | K71: 0
E72: =D72*Impostos!$C$15 -> 0 | F72: =D72*Impostos!$C$16 -> 0 | G72: =D72*Impostos!$C$17 -> 0 | H72: =D72*Impostos!$C$18 -> 0 | I72: =D72*Impostos!$C$19 -> 0 | J72: 0 | K72: 0
E73: =D73*Impostos!$C$15 -> 0 | F73: =D73*Impostos!$C$16 -> 0 | G73: =D73*Impostos!$C$17 -> 0 | H73: =D73*Impostos!$C$18 -> 0 | I73: =D73*Impostos!$C$19 -> 0 | J73: 0 | K73: 0
E74: =D74*Impostos!$C$15 -> 0 | F74: =D74*Impostos!$C$16 -> 0 | G74: =D74*Impostos!$C$17 -> 0 | H74: =D74*Impostos!$C$18 -> 0 | I74: =D74*Impostos!$C$19 -> 0 | J74: 0 | K74: 0
E75: =D75*Impostos!$C$15 -> 0 | F75: =D75*Impostos!$C$16 -> 0 | G75: =D75*Impostos!$C$17 -> 0 | H75: =D75*Impostos!$C$18 -> 0 | I75: =D75*Impostos!$C$19 -> 0 | J75: 0 | K75: 0
E76: =D76*Impostos!$C$15 -> 0 | F76: =D76*Impostos!$C$16 -> 0 | G76: =D76*Impostos!$C$17 -> 0 | H76: =D76*Impostos!$C$18 -> 0 | I76: =D76*Impostos!$C$19 -> 0 | J76: 0 | K76: 0
E77: =D77*Impostos!$C$15 -> 0 | F77: =D77*Impostos!$C$16 -> 0 | G77: =D77*Impostos!$C$17 -> 0 | H77: =D77*Impostos!$C$18 -> 0 | I77: =D77*Impostos!$C$19 -> 0 | J77: 0 | K77: 0
E78: =D78*Impostos!$C$15 -> 0 | F78: =D78*Impostos!$C$16 -> 0 | G78: =D78*Impostos!$C$17 -> 0 | H78: =D78*Impostos!$C$18 -> 0 | I78: =D78*Impostos!$C$19 -> 0 | J78: 0 | K78: 0
E79: =D79*Impostos!$C$15 -> 0 | F79: =D79*Impostos!$C$16 -> 0 | G79: =D79*Impostos!$C$17 -> 0 | H79: =D79*Impostos!$C$18 -> 0 | I79: =D79*Impostos!$C$19 -> 0 | J79: 0 | K79: 0
E80: =D80*Impostos!$C$15 -> 0 | F80: =D80*Impostos!$C$16 -> 0 | G80: =D80*Impostos!$C$17 -> 0 | H80: =D80*Impostos!$C$18 -> 0 | I80: =D80*Impostos!$C$19 -> 0 | J80: 0 | K80: 0 | N80: =IF(C80="","",MONTH(C80)) -> 
E81: =D81*Impostos!$C$15 -> 0 | F81: =D81*Impostos!$C$16 -> 0 | G81: =D81*Impostos!$C$17 -> 0 | H81: =D81*Impostos!$C$18 -> 0 | I81: =D81*Impostos!$C$19 -> 0 | J81: 0 | K81: 0
E82: =D82*Impostos!$C$15 -> 0 | F82: =D82*Impostos!$C$16 -> 0 | G82: =D82*Impostos!$C$17 -> 0 | H82: =D82*Impostos!$C$18 -> 0 | I82: =D82*Impostos!$C$19 -> 0 | J82: 0 | K82: 0
E83: =D83*Impostos!$C$15 -> 0 | F83: =D83*Impostos!$C$16 -> 0 | G83: =D83*Impostos!$C$17 -> 0 | H83: =D83*Impostos!$C$18 -> 0 | I83: =D83*Impostos!$C$19 -> 0 | J83: 0 | K83: 0
E84: =D84*Impostos!$C$15 -> 0 | F84: =D84*Impostos!$C$16 -> 0 | G84: =D84*Impostos!$C$17 -> 0 | H84: =D84*Impostos!$C$18 -> 0 | I84: =D84*Impostos!$C$19 -> 0 | J84: =SUM(E84:I84) -> 0 | K84: =D84-J84 -> 0
E85: =D85*Impostos!$C$15 -> 0 | F85: =D85*Impostos!$C$16 -> 0 | G85: =D85*Impostos!$C$17 -> 0 | H85: =D85*Impostos!$C$18 -> 0 | I85: =D85*Impostos!$C$19 -> 0 | J85: 0 | K85: 0
E86: =D86*Impostos!$C$15 -> 0 | F86: =D86*Impostos!$C$16 -> 0 | G86: =D86*Impostos!$C$17 -> 0 | H86: =D86*Impostos!$C$18 -> 0 | I86: =D86*Impostos!$C$19 -> 0 | J86: 0 | K86: 0
E87: =D87*Impostos!$C$15 -> 0 | F87: =D87*Impostos!$C$16 -> 0 | G87: =D87*Impostos!$C$17 -> 0 | H87: =D87*Impostos!$C$18 -> 0 | I87: =D87*Impostos!$C$19 -> 0 | J87: 0 | K87: 0
E88: =D88*Impostos!$C$15 -> 0 | F88: =D88*Impostos!$C$16 -> 0 | G88: =D88*Impostos!$C$17 -> 0 | H88: =D88*Impostos!$C$18 -> 0 | I88: =D88*Impostos!$C$19 -> 0 | J88: =SUM(E88:I88) -> 0 | K88: =D88-J88 -> 0
E89: =D89*Impostos!$C$15 -> 0 | F89: =D89*Impostos!$C$16 -> 0 | G89: =D89*Impostos!$C$17 -> 0 | H89: =D89*Impostos!$C$18 -> 0 | I89: =D89*Impostos!$C$19 -> 0 | J89: 0 | K89: 0
E90: =D90*Impostos!$C$15 -> 0 | F90: =D90*Impostos!$C$16 -> 0 | G90: =D90*Impostos!$C$17 -> 0 | H90: =D90*Impostos!$C$18 -> 0 | I90: =D90*Impostos!$C$19 -> 0 | J90: 0 | K90: 0
E91: =D91*Impostos!$C$15 -> 0 | F91: =D91*Impostos!$C$16 -> 0 | G91: =D91*Impostos!$C$17 -> 0 | H91: =D91*Impostos!$C$18 -> 0 | I91: =D91*Impostos!$C$19 -> 0 | J91: 0 | K91: 0
E92: =D92*Impostos!$C$15 -> 0 | F92: =D92*Impostos!$C$16 -> 0 | G92: =D92*Impostos!$C$17 -> 0 | H92: =D92*Impostos!$C$18 -> 0 | I92: =D92*Impostos!$C$19 -> 0 | J92: 0 | K92: 0
E93: =D93*Impostos!$C$15 -> 0 | F93: =D93*Impostos!$C$16 -> 0 | G93: =D93*Impostos!$C$17 -> 0 | H93: =D93*Impostos!$C$18 -> 0 | I93: =D93*Impostos!$C$19 -> 0 | J93: 0 | K93: 0
E94: =D94*Impostos!$C$15 -> 0 | F94: =D94*Impostos!$C$16 -> 0 | G94: =D94*Impostos!$C$17 -> 0 | H94: =D94*Impostos!$C$18 -> 0 | I94: =D94*Impostos!$C$19 -> 0 | J94: 0 | K94: 0
E95: =D95*Impostos!$C$15 -> 0 | F95: =D95*Impostos!$C$16 -> 0 | G95: =D95*Impostos!$C$17 -> 0 | H95: =D95*Impostos!$C$18 -> 0 | I95: =D95*Impostos!$C$19 -> 0 | J95: 0 | K95: 0
E96: =D96*Impostos!$C$15 -> 0 | F96: =D96*Impostos!$C$16 -> 0 | G96: =D96*Impostos!$C$17 -> 0 | H96: =D96*Impostos!$C$18 -> 0 | I96: =D96*Impostos!$C$19 -> 0 | J96: 0 | K96: 0
E97: =D97*Impostos!$C$15 -> 0 | F97: =D97*Impostos!$C$16 -> 0 | G97: =D97*Impostos!$C$17 -> 0 | H97: =D97*Impostos!$C$18 -> 0 | I97: =D97*Impostos!$C$19 -> 0 | J97: 0 | K97: 0
E98: =D98*Impostos!$C$15 -> 0 | F98: =D98*Impostos!$C$16 -> 0 | G98: =D98*Impostos!$C$17 -> 0 | H98: =D98*Impostos!$C$18 -> 0 | I98: =D98*Impostos!$C$19 -> 0 | J98: 0 | K98: 0
E99: =D99*Impostos!$C$15 -> 0 | F99: =D99*Impostos!$C$16 -> 0 | G99: =D99*Impostos!$C$17 -> 0 | H99: =D99*Impostos!$C$18 -> 0 | I99: =D99*Impostos!$C$19 -> 0 | J99: 0 | K99: 0
E100: =D100*Impostos!$C$15 -> 0 | F100: =D100*Impostos!$C$16 -> 0 | G100: =D100*Impostos!$C$17 -> 0 | H100: =D100*Impostos!$C$18 -> 0 | I100: =D100*Impostos!$C$19 -> 0 | J100: 0 | K100: 0
E101: =D101*Impostos!$C$15 -> 0 | F101: =D101*Impostos!$C$16 -> 0 | G101: =D101*Impostos!$C$17 -> 0 | H101: =D101*Impostos!$C$18 -> 0 | I101: =D101*Impostos!$C$19 -> 0 | J101: 0 | K101: 0
E102: =D102*Impostos!$C$15 -> 0 | F102: =D102*Impostos!$C$16 -> 0 | G102: =D102*Impostos!$C$17 -> 0 | H102: =D102*Impostos!$C$18 -> 0 | I102: =D102*Impostos!$C$19 -> 0 | J102: 0 | K102: 0
E103: =D103*Impostos!$C$15 -> 0 | F103: =D103*Impostos!$C$16 -> 0 | G103: =D103*Impostos!$C$17 -> 0 | H103: =D103*Impostos!$C$18 -> 0 | I103: =D103*Impostos!$C$19 -> 0 | J103: 0 | K103: 0
E104: =D104*Impostos!$C$15 -> 0 | F104: =D104*Impostos!$C$16 -> 0 | G104: =D104*Impostos!$C$17 -> 0 | H104: =D104*Impostos!$C$18 -> 0 | I104: =D104*Impostos!$C$19 -> 0 | J104: 0 | K104: 0
E105: =D105*Impostos!$C$15 -> 0 | F105: =D105*Impostos!$C$16 -> 0 | G105: =D105*Impostos!$C$17 -> 0 | H105: =D105*Impostos!$C$18 -> 0 | I105: =D105*Impostos!$C$19 -> 0 | J105: 0 | K105: 0
E106: =D106*Impostos!$C$15 -> 0 | F106: =D106*Impostos!$C$16 -> 0 | G106: =D106*Impostos!$C$17 -> 0 | H106: =D106*Impostos!$C$18 -> 0 | I106: =D106*Impostos!$C$19 -> 0 | J106: 0 | K106: 0
E107: =D107*Impostos!$C$15 -> 0 | F107: =D107*Impostos!$C$16 -> 0 | G107: =D107*Impostos!$C$17 -> 0 | H107: =D107*Impostos!$C$18 -> 0 | I107: =D107*Impostos!$C$19 -> 0 | J107: 0 | K107: 0
E108: =D108*Impostos!$C$15 -> 0 | F108: =D108*Impostos!$C$16 -> 0 | G108: =D108*Impostos!$C$17 -> 0 | H108: =D108*Impostos!$C$18 -> 0 | I108: =D108*Impostos!$C$19 -> 0 | J108: 0 | K108: 0
E109: =D109*Impostos!$C$15 -> 0 | F109: =D109*Impostos!$C$16 -> 0 | G109: =D109*Impostos!$C$17 -> 0 | H109: =D109*Impostos!$C$18 -> 0 | I109: =D109*Impostos!$C$19 -> 0 | J109: 0 | K109: 0
E110: =D110*Impostos!$C$15 -> 0 | F110: =D110*Impostos!$C$16 -> 0 | G110: =D110*Impostos!$C$17 -> 0 | H110: =D110*Impostos!$C$18 -> 0 | I110: =D110*Impostos!$C$19 -> 0 | J110: 0 | K110: 0
E111: =D111*Impostos!$C$15 -> 0 | F111: =D111*Impostos!$C$16 -> 0 | G111: =D111*Impostos!$C$17 -> 0 | H111: =D111*Impostos!$C$18 -> 0 | I111: =D111*Impostos!$C$19 -> 0 | J111: 0 | K111: 0
E112: =D112*Impostos!$C$15 -> 0 | F112: =D112*Impostos!$C$16 -> 0 | G112: =D112*Impostos!$C$17 -> 0 | H112: =D112*Impostos!$C$18 -> 0 | I112: =D112*Impostos!$C$19 -> 0 | J112: 0 | K112: 0
E113: =D113*Impostos!$C$15 -> 0 | F113: =D113*Impostos!$C$16 -> 0 | G113: =D113*Impostos!$C$17 -> 0 | H113: =D113*Impostos!$C$18 -> 0 | I113: =D113*Impostos!$C$19 -> 0 | J113: 0 | K113: 0
E114: =D114*Impostos!$C$15 -> 0 | F114: =D114*Impostos!$C$16 -> 0 | G114: =D114*Impostos!$C$17 -> 0 | H114: =D114*Impostos!$C$18 -> 0 | I114: =D114*Impostos!$C$19 -> 0 | J114: 0 | K114: 0
E115: =D115*Impostos!$C$15 -> 0 | F115: =D115*Impostos!$C$16 -> 0 | G115: =D115*Impostos!$C$17 -> 0 | H115: =D115*Impostos!$C$18 -> 0 | I115: =D115*Impostos!$C$19 -> 0 | J115: 0 | K115: 0
E116: =D116*Impostos!$C$15 -> 0 | F116: =D116*Impostos!$C$16 -> 0 | G116: =D116*Impostos!$C$17 -> 0 | H116: =D116*Impostos!$C$18 -> 0 | I116: =D116*Impostos!$C$19 -> 0 | J116: 0 | K116: 0
E117: =D117*Impostos!$C$15 -> 0 | F117: =D117*Impostos!$C$16 -> 0 | G117: =D117*Impostos!$C$17 -> 0 | H117: =D117*Impostos!$C$18 -> 0 | I117: =D117*Impostos!$C$19 -> 0 | J117: 0 | K117: 0
E118: =D118*Impostos!$C$15 -> 0 | F118: =D118*Impostos!$C$16 -> 0 | G118: =D118*Impostos!$C$17 -> 0 | H118: =D118*Impostos!$C$18 -> 0 | I118: =D118*Impostos!$C$19 -> 0 | J118: 0 | K118: 0
E119: =D119*Impostos!$C$15 -> 0 | F119: =D119*Impostos!$C$16 -> 0 | G119: =D119*Impostos!$C$17 -> 0 | H119: =D119*Impostos!$C$18 -> 0 | I119: =D119*Impostos!$C$19 -> 0 | J119: 0 | K119: 0
E120: =D120*Impostos!$C$15 -> 0 | F120: =D120*Impostos!$C$16 -> 0 | G120: =D120*Impostos!$C$17 -> 0 | H120: =D120*Impostos!$C$18 -> 0 | I120: =D120*Impostos!$C$19 -> 0 | J120: 0 | K120: 0
E121: =D121*Impostos!$C$15 -> 0 | F121: =D121*Impostos!$C$16 -> 0 | G121: =D121*Impostos!$C$17 -> 0 | H121: =D121*Impostos!$C$18 -> 0 | I121: =D121*Impostos!$C$19 -> 0 | J121: 0 | K121: 0
E122: =D122*Impostos!$C$15 -> 0 | F122: =D122*Impostos!$C$16 -> 0 | G122: =D122*Impostos!$C$17 -> 0 | H122: =D122*Impostos!$C$18 -> 0 | I122: =D122*Impostos!$C$19 -> 0 | J122: 0 | K122: 0
E123: =D123*Impostos!$C$15 -> 0 | F123: =D123*Impostos!$C$16 -> 0 | G123: =D123*Impostos!$C$17 -> 0 | H123: =D123*Impostos!$C$18 -> 0 | I123: =D123*Impostos!$C$19 -> 0 | J123: 0 | K123: 0
E124: =D124*Impostos!$C$15 -> 0 | F124: =D124*Impostos!$C$16 -> 0 | G124: =D124*Impostos!$C$17 -> 0 | H124: =D124*Impostos!$C$18 -> 0 | I124: =D124*Impostos!$C$19 -> 0 | J124: 0 | K124: 0
E125: =D125*Impostos!$C$15 -> 0 | F125: =D125*Impostos!$C$16 -> 0 | G125: =D125*Impostos!$C$17 -> 0 | H125: =D125*Impostos!$C$18 -> 0 | I125: =D125*Impostos!$C$19 -> 0 | J125: 0 | K125: 0
E126: =D126*Impostos!$C$15 -> 0 | F126: =D126*Impostos!$C$16 -> 0 | G126: =D126*Impostos!$C$17 -> 0 | H126: =D126*Impostos!$C$18 -> 0 | I126: =D126*Impostos!$C$19 -> 0 | J126: 0 | K126: 0
E127: =D127*Impostos!$C$15 -> 0 | F127: =D127*Impostos!$C$16 -> 0 | G127: =D127*Impostos!$C$17 -> 0 | H127: =D127*Impostos!$C$18 -> 0 | I127: =D127*Impostos!$C$19 -> 0 | J127: 0 | K127: 0
E128: =D128*Impostos!$C$15 -> 0 | F128: =D128*Impostos!$C$16 -> 0 | G128: =D128*Impostos!$C$17 -> 0 | H128: =D128*Impostos!$C$18 -> 0 | I128: =D128*Impostos!$C$19 -> 0 | J128: 0 | K128: 0
E129: =D129*Impostos!$C$15 -> 0 | F129: =D129*Impostos!$C$16 -> 0 | G129: =D129*Impostos!$C$17 -> 0 | H129: =D129*Impostos!$C$18 -> 0 | I129: =D129*Impostos!$C$19 -> 0 | J129: 0 | K129: 0
E130: =D130*Impostos!$C$15 -> 0 | F130: =D130*Impostos!$C$16 -> 0 | G130: =D130*Impostos!$C$17 -> 0 | H130: =D130*Impostos!$C$18 -> 0 | I130: =D130*Impostos!$C$19 -> 0 | J130: 0 | K130: 0
E131: =D131*Impostos!$C$15 -> 0 | F131: =D131*Impostos!$C$16 -> 0 | G131: =D131*Impostos!$C$17 -> 0 | H131: =D131*Impostos!$C$18 -> 0 | I131: =D131*Impostos!$C$19 -> 0 | J131: 0 | K131: 0
E132: =D132*Impostos!$C$15 -> 0 | F132: =D132*Impostos!$C$16 -> 0 | G132: =D132*Impostos!$C$17 -> 0 | H132: =D132*Impostos!$C$18 -> 0 | I132: =D132*Impostos!$C$19 -> 0 | J132: 0 | K132: 0
E133: =D133*Impostos!$C$15 -> 0 | F133: =D133*Impostos!$C$16 -> 0 | G133: =D133*Impostos!$C$17 -> 0 | H133: =D133*Impostos!$C$18 -> 0 | I133: =D133*Impostos!$C$19 -> 0 | J133: 0 | K133: 0
E134: =D134*Impostos!$C$15 -> 0 | F134: =D134*Impostos!$C$16 -> 0 | G134: =D134*Impostos!$C$17 -> 0 | H134: =D134*Impostos!$C$18 -> 0 | I134: =D134*Impostos!$C$19 -> 0 | J134: 0 | K134: 0
E135: =D135*Impostos!$C$15 -> 0 | F135: =D135*Impostos!$C$16 -> 0 | G135: =D135*Impostos!$C$17 -> 0 | H135: =D135*Impostos!$C$18 -> 0 | I135: =D135*Impostos!$C$19 -> 0 | J135: 0 | K135: 0
E136: =D136*Impostos!$C$15 -> 0 | F136: =D136*Impostos!$C$16 -> 0 | G136: =D136*Impostos!$C$17 -> 0 | H136: =D136*Impostos!$C$18 -> 0 | I136: =D136*Impostos!$C$19 -> 0 | J136: 0 | K136: 0
E137: =D137*Impostos!$C$15 -> 0 | F137: =D137*Impostos!$C$16 -> 0 | G137: =D137*Impostos!$C$17 -> 0 | H137: =D137*Impostos!$C$18 -> 0 | I137: =D137*Impostos!$C$19 -> 0 | J137: 0 | K137: 0
E138: =D138*Impostos!$C$15 -> 0 | F138: =D138*Impostos!$C$16 -> 0 | G138: =D138*Impostos!$C$17 -> 0 | H138: =D138*Impostos!$C$18 -> 0 | I138: =D138*Impostos!$C$19 -> 0 | J138: 0 | K138: 0
E139: =D139*Impostos!$C$15 -> 0 | F139: =D139*Impostos!$C$16 -> 0 | G139: =D139*Impostos!$C$17 -> 0 | H139: =D139*Impostos!$C$18 -> 0 | I139: =D139*Impostos!$C$19 -> 0 | J139: 0 | K139: 0
E140: =D140*Impostos!$C$15 -> 0 | F140: =D140*Impostos!$C$16 -> 0 | G140: =D140*Impostos!$C$17 -> 0 | H140: =D140*Impostos!$C$18 -> 0 | I140: =D140*Impostos!$C$19 -> 0 | J140: 0 | K140: 0
E141: =D141*Impostos!$C$15 -> 0 | F141: =D141*Impostos!$C$16 -> 0 | G141: =D141*Impostos!$C$17 -> 0 | H141: =D141*Impostos!$C$18 -> 0 | I141: =D141*Impostos!$C$19 -> 0 | J141: 0 | K141: 0
E142: =D142*Impostos!$C$15 -> 0 | F142: =D142*Impostos!$C$16 -> 0 | G142: =D142*Impostos!$C$17 -> 0 | H142: =D142*Impostos!$C$18 -> 0 | I142: =D142*Impostos!$C$19 -> 0 | J142: 0 | K142: 0
E143: =D143*Impostos!$C$15 -> 0 | F143: =D143*Impostos!$C$16 -> 0 | G143: =D143*Impostos!$C$17 -> 0 | H143: =D143*Impostos!$C$18 -> 0 | I143: =D143*Impostos!$C$19 -> 0 | J143: 0 | K143: 0
E144: =D144*Impostos!$C$15 -> 0 | F144: =D144*Impostos!$C$16 -> 0 | G144: =D144*Impostos!$C$17 -> 0 | H144: =D144*Impostos!$C$18 -> 0 | I144: =D144*Impostos!$C$19 -> 0 | J144: 0 | K144: 0 | N144: =IF(C144="","",MONTH(C144)) -> 
E145: =D145*Impostos!$C$15 -> 0 | F145: =D145*Impostos!$C$16 -> 0 | G145: =D145*Impostos!$C$17 -> 0 | H145: =D145*Impostos!$C$18 -> 0 | I145: =D145*Impostos!$C$19 -> 0 | J145: 0 | K145: 0
E146: =D146*Impostos!$C$15 -> 0 | F146: =D146*Impostos!$C$16 -> 0 | G146: =D146*Impostos!$C$17 -> 0 | H146: =D146*Impostos!$C$18 -> 0 | I146: =D146*Impostos!$C$19 -> 0 | J146: 0 | K146: 0
E147: =D147*Impostos!$C$15 -> 0 | F147: =D147*Impostos!$C$16 -> 0 | G147: =D147*Impostos!$C$17 -> 0 | H147: =D147*Impostos!$C$18 -> 0 | I147: =D147*Impostos!$C$19 -> 0 | J147: 0 | K147: 0
E148: =D148*Impostos!$C$15 -> 0 | F148: =D148*Impostos!$C$16 -> 0 | G148: =D148*Impostos!$C$17 -> 0 | H148: =D148*Impostos!$C$18 -> 0 | I148: =D148*Impostos!$C$19 -> 0 | J148: 0 | K148: 0
E149: =D149*Impostos!$C$15 -> 0 | F149: =D149*Impostos!$C$16 -> 0 | G149: =D149*Impostos!$C$17 -> 0 | H149: =D149*Impostos!$C$18 -> 0 | I149: =D149*Impostos!$C$19 -> 0 | J149: 0 | K149: 0
E150: =D150*Impostos!$C$15 -> 0 | F150: =D150*Impostos!$C$16 -> 0 | G150: =D150*Impostos!$C$17 -> 0 | H150: =D150*Impostos!$C$18 -> 0 | I150: =D150*Impostos!$C$19 -> 0 | J150: 0 | K150: 0
E151: =D151*Impostos!$C$15 -> 0 | F151: =D151*Impostos!$C$16 -> 0 | G151: =D151*Impostos!$C$17 -> 0 | H151: =D151*Impostos!$C$18 -> 0 | I151: =D151*Impostos!$C$19 -> 0 | J151: 0 | K151: 0
E152: =D152*Impostos!$C$15 -> 0 | F152: =D152*Impostos!$C$16 -> 0 | G152: =D152*Impostos!$C$17 -> 0 | H152: =D152*Impostos!$C$18 -> 0 | I152: =D152*Impostos!$C$19 -> 0 | J152: =SUM(E152:I152) -> 0 | K152: =D152-J152 -> 0
E153: =D153*Impostos!$C$15 -> 0 | F153: =D153*Impostos!$C$16 -> 0 | G153: =D153*Impostos!$C$17 -> 0 | H153: =D153*Impostos!$C$18 -> 0 | I153: =D153*Impostos!$C$19 -> 0 | J153: 0 | K153: 0
E154: =D154*Impostos!$C$15 -> 0 | F154: =D154*Impostos!$C$16 -> 0 | G154: =D154*Impostos!$C$17 -> 0 | H154: =D154*Impostos!$C$18 -> 0 | I154: =D154*Impostos!$C$19 -> 0 | J154: 0 | K154: 0
E155: =D155*Impostos!$C$15 -> 0 | F155: =D155*Impostos!$C$16 -> 0 | G155: =D155*Impostos!$C$17 -> 0 | H155: =D155*Impostos!$C$18 -> 0 | I155: =D155*Impostos!$C$19 -> 0 | J155: 0 | K155: 0
E156: =D156*Impostos!$C$15 -> 0 | F156: =D156*Impostos!$C$16 -> 0 | G156: =D156*Impostos!$C$17 -> 0 | H156: =D156*Impostos!$C$18 -> 0 | I156: =D156*Impostos!$C$19 -> 0 | J156: 0 | K156: 0
E157: =D157*Impostos!$C$15 -> 0 | F157: =D157*Impostos!$C$16 -> 0 | G157: =D157*Impostos!$C$17 -> 0 | H157: =D157*Impostos!$C$18 -> 0 | I157: =D157*Impostos!$C$19 -> 0 | J157: 0 | K157: 0
E158: =D158*Impostos!$C$15 -> 0 | F158: =D158*Impostos!$C$16 -> 0 | G158: =D158*Impostos!$C$17 -> 0 | H158: =D158*Impostos!$C$18 -> 0 | I158: =D158*Impostos!$C$19 -> 0 | J158: 0 | K158: 0
E159: =D159*Impostos!$C$15 -> 0 | F159: =D159*Impostos!$C$16 -> 0 | G159: =D159*Impostos!$C$17 -> 0 | H159: =D159*Impostos!$C$18 -> 0 | I159: =D159*Impostos!$C$19 -> 0 | J159: 0 | K159: 0
E160: =D160*Impostos!$C$15 -> 0 | F160: =D160*Impostos!$C$16 -> 0 | G160: =D160*Impostos!$C$17 -> 0 | H160: =D160*Impostos!$C$18 -> 0 | I160: =D160*Impostos!$C$19 -> 0 | J160: 0 | K160: 0
E161: =D161*Impostos!$C$15 -> 0 | F161: =D161*Impostos!$C$16 -> 0 | G161: =D161*Impostos!$C$17 -> 0 | H161: =D161*Impostos!$C$18 -> 0 | I161: =D161*Impostos!$C$19 -> 0 | J161: 0 | K161: 0
E162: =D162*Impostos!$C$15 -> 0 | F162: =D162*Impostos!$C$16 -> 0 | G162: =D162*Impostos!$C$17 -> 0 | H162: =D162*Impostos!$C$18 -> 0 | I162: =D162*Impostos!$C$19 -> 0 | J162: 0 | K162: 0
E163: =D163*Impostos!$C$15 -> 0 | F163: =D163*Impostos!$C$16 -> 0 | G163: =D163*Impostos!$C$17 -> 0 | H163: =D163*Impostos!$C$18 -> 0 | I163: =D163*Impostos!$C$19 -> 0 | J163: 0 | K163: 0
E164: =D164*Impostos!$C$15 -> 0 | F164: =D164*Impostos!$C$16 -> 0 | G164: =D164*Impostos!$C$17 -> 0 | H164: =D164*Impostos!$C$18 -> 0 | I164: =D164*Impostos!$C$19 -> 0 | J164: 0 | K164: 0
E165: =D165*Impostos!$C$15 -> 0 | F165: =D165*Impostos!$C$16 -> 0 | G165: =D165*Impostos!$C$17 -> 0 | H165: =D165*Impostos!$C$18 -> 0 | I165: =D165*Impostos!$C$19 -> 0 | J165: 0 | K165: 0
E166: =D166*Impostos!$C$15 -> 0 | F166: =D166*Impostos!$C$16 -> 0 | G166: =D166*Impostos!$C$17 -> 0 | H166: =D166*Impostos!$C$18 -> 0 | I166: =D166*Impostos!$C$19 -> 0 | J166: 0 | K166: 0
E167: =D167*Impostos!$C$15 -> 0 | F167: =D167*Impostos!$C$16 -> 0 | G167: =D167*Impostos!$C$17 -> 0 | H167: =D167*Impostos!$C$18 -> 0 | I167: =D167*Impostos!$C$19 -> 0 | J167: 0 | K167: 0
E168: =D168*Impostos!$C$15 -> 0 | F168: =D168*Impostos!$C$16 -> 0 | G168: =D168*Impostos!$C$17 -> 0 | H168: =D168*Impostos!$C$18 -> 0 | I168: =D168*Impostos!$C$19 -> 0 | J168: 0 | K168: 0
E169: =D169*Impostos!$C$15 -> 0 | F169: =D169*Impostos!$C$16 -> 0 | G169: =D169*Impostos!$C$17 -> 0 | H169: =D169*Impostos!$C$18 -> 0 | I169: =D169*Impostos!$C$19 -> 0 | J169: 0 | K169: 0
E170: =D170*Impostos!$C$15 -> 0 | F170: =D170*Impostos!$C$16 -> 0 | G170: =D170*Impostos!$C$17 -> 0 | H170: =D170*Impostos!$C$18 -> 0 | I170: =D170*Impostos!$C$19 -> 0 | J170: 0 | K170: 0
E171: =D171*Impostos!$C$15 -> 0 | F171: =D171*Impostos!$C$16 -> 0 | G171: =D171*Impostos!$C$17 -> 0 | H171: =D171*Impostos!$C$18 -> 0 | I171: =D171*Impostos!$C$19 -> 0 | J171: 0 | K171: 0
E172: =D172*Impostos!$C$15 -> 0 | F172: =D172*Impostos!$C$16 -> 0 | G172: =D172*Impostos!$C$17 -> 0 | H172: =D172*Impostos!$C$18 -> 0 | I172: =D172*Impostos!$C$19 -> 0 | J172: 0 | K172: 0
E173: =D173*Impostos!$C$15 -> 0 | F173: =D173*Impostos!$C$16 -> 0 | G173: =D173*Impostos!$C$17 -> 0 | H173: =D173*Impostos!$C$18 -> 0 | I173: =D173*Impostos!$C$19 -> 0 | J173: 0 | K173: 0
E174: =D174*Impostos!$C$15 -> 0 | F174: =D174*Impostos!$C$16 -> 0 | G174: =D174*Impostos!$C$17 -> 0 | H174: =D174*Impostos!$C$18 -> 0 | I174: =D174*Impostos!$C$19 -> 0 | J174: 0 | K174: 0
E175: =D175*Impostos!$C$15 -> 0 | F175: =D175*Impostos!$C$16 -> 0 | G175: =D175*Impostos!$C$17 -> 0 | H175: =D175*Impostos!$C$18 -> 0 | I175: =D175*Impostos!$C$19 -> 0 | J175: 0 | K175: 0
E176: =D176*Impostos!$C$15 -> 0 | F176: =D176*Impostos!$C$16 -> 0 | G176: =D176*Impostos!$C$17 -> 0 | H176: =D176*Impostos!$C$18 -> 0 | I176: =D176*Impostos!$C$19 -> 0 | J176: 0 | K176: 0
E177: =D177*Impostos!$C$15 -> 0 | F177: =D177*Impostos!$C$16 -> 0 | G177: =D177*Impostos!$C$17 -> 0 | H177: =D177*Impostos!$C$18 -> 0 | I177: =D177*Impostos!$C$19 -> 0 | J177: 0 | K177: 0
E178: =D178*Impostos!$C$15 -> 0 | F178: =D178*Impostos!$C$16 -> 0 | G178: =D178*Impostos!$C$17 -> 0 | H178: =D178*Impostos!$C$18 -> 0 | I178: =D178*Impostos!$C$19 -> 0 | J178: 0 | K178: 0
E179: =D179*Impostos!$C$15 -> 0 | F179: =D179*Impostos!$C$16 -> 0 | G179: =D179*Impostos!$C$17 -> 0 | H179: =D179*Impostos!$C$18 -> 0 | I179: =D179*Impostos!$C$19 -> 0 | J179: 0 | K179: 0
E180: =D180*Impostos!$C$15 -> 0 | F180: =D180*Impostos!$C$16 -> 0 | G180: =D180*Impostos!$C$17 -> 0 | H180: =D180*Impostos!$C$18 -> 0 | I180: =D180*Impostos!$C$19 -> 0 | J180: 0 | K180: 0
E181: =D181*Impostos!$C$15 -> 0 | F181: =D181*Impostos!$C$16 -> 0 | G181: =D181*Impostos!$C$17 -> 0 | H181: =D181*Impostos!$C$18 -> 0 | I181: =D181*Impostos!$C$19 -> 0 | J181: 0 | K181: 0
E182: =D182*Impostos!$C$15 -> 0 | F182: =D182*Impostos!$C$16 -> 0 | G182: =D182*Impostos!$C$17 -> 0 | H182: =D182*Impostos!$C$18 -> 0 | I182: =D182*Impostos!$C$19 -> 0 | J182: 0 | K182: 0
E183: =D183*Impostos!$C$15 -> 0 | F183: =D183*Impostos!$C$16 -> 0 | G183: =D183*Impostos!$C$17 -> 0 | H183: =D183*Impostos!$C$18 -> 0 | I183: =D183*Impostos!$C$19 -> 0 | J183: 0 | K183: 0
E184: =D184*Impostos!$C$15 -> 0 | F184: =D184*Impostos!$C$16 -> 0 | G184: =D184*Impostos!$C$17 -> 0 | H184: =D184*Impostos!$C$18 -> 0 | I184: =D184*Impostos!$C$19 -> 0 | J184: 0 | K184: 0
E185: =D185*Impostos!$C$15 -> 0 | F185: =D185*Impostos!$C$16 -> 0 | G185: =D185*Impostos!$C$17 -> 0 | H185: =D185*Impostos!$C$18 -> 0 | I185: =D185*Impostos!$C$19 -> 0 | J185: 0 | K185: 0
E186: =D186*Impostos!$C$15 -> 0 | F186: =D186*Impostos!$C$16 -> 0 | G186: =D186*Impostos!$C$17 -> 0 | H186: =D186*Impostos!$C$18 -> 0 | I186: =D186*Impostos!$C$19 -> 0 | J186: 0 | K186: 0
E187: =D187*Impostos!$C$15 -> 0 | F187: =D187*Impostos!$C$16 -> 0 | G187: =D187*Impostos!$C$17 -> 0 | H187: =D187*Impostos!$C$18 -> 0 | I187: =D187*Impostos!$C$19 -> 0 | J187: 0 | K187: 0
E188: =D188*Impostos!$C$15 -> 0 | F188: =D188*Impostos!$C$16 -> 0 | G188: =D188*Impostos!$C$17 -> 0 | H188: =D188*Impostos!$C$18 -> 0 | I188: =D188*Impostos!$C$19 -> 0 | J188: 0 | K188: 0
E189: =D189*Impostos!$C$15 -> 0 | F189: =D189*Impostos!$C$16 -> 0 | G189: =D189*Impostos!$C$17 -> 0 | H189: =D189*Impostos!$C$18 -> 0 | I189: =D189*Impostos!$C$19 -> 0 | J189: 0 | K189: 0
E190: =D190*Impostos!$C$15 -> 0 | F190: =D190*Impostos!$C$16 -> 0 | G190: =D190*Impostos!$C$17 -> 0 | H190: =D190*Impostos!$C$18 -> 0 | I190: =D190*Impostos!$C$19 -> 0 | J190: 0 | K190: 0
E191: =D191*Impostos!$C$15 -> 0 | F191: =D191*Impostos!$C$16 -> 0 | G191: =D191*Impostos!$C$17 -> 0 | H191: =D191*Impostos!$C$18 -> 0 | I191: =D191*Impostos!$C$19 -> 0 | J191: 0 | K191: 0
E192: =D192*Impostos!$C$15 -> 0 | F192: =D192*Impostos!$C$16 -> 0 | G192: =D192*Impostos!$C$17 -> 0 | H192: =D192*Impostos!$C$18 -> 0 | I192: =D192*Impostos!$C$19 -> 0 | J192: 0 | K192: 0
E193: =D193*Impostos!$C$15 -> 0 | F193: =D193*Impostos!$C$16 -> 0 | G193: =D193*Impostos!$C$17 -> 0 | H193: =D193*Impostos!$C$18 -> 0 | I193: =D193*Impostos!$C$19 -> 0 | J193: 0 | K193: 0
E194: =D194*Impostos!$C$15 -> 0 | F194: =D194*Impostos!$C$16 -> 0 | G194: =D194*Impostos!$C$17 -> 0 | H194: =D194*Impostos!$C$18 -> 0 | I194: =D194*Impostos!$C$19 -> 0 | J194: 0 | K194: 0
E195: =D195*Impostos!$C$15 -> 0 | F195: =D195*Impostos!$C$16 -> 0 | G195: =D195*Impostos!$C$17 -> 0 | H195: =D195*Impostos!$C$18 -> 0 | I195: =D195*Impostos!$C$19 -> 0 | J195: 0 | K195: 0
E196: =D196*Impostos!$C$15 -> 0 | F196: =D196*Impostos!$C$16 -> 0 | G196: =D196*Impostos!$C$17 -> 0 | H196: =D196*Impostos!$C$18 -> 0 | I196: =D196*Impostos!$C$19 -> 0 | J196: 0 | K196: 0
E197: =D197*Impostos!$C$15 -> 0 | F197: =D197*Impostos!$C$16 -> 0 | G197: =D197*Impostos!$C$17 -> 0 | H197: =D197*Impostos!$C$18 -> 0 | I197: =D197*Impostos!$C$19 -> 0 | J197: 0 | K197: 0
E198: =D198*Impostos!$C$15 -> 0 | F198: =D198*Impostos!$C$16 -> 0 | G198: =D198*Impostos!$C$17 -> 0 | H198: =D198*Impostos!$C$18 -> 0 | I198: =D198*Impostos!$C$19 -> 0 | J198: 0 | K198: 0
E199: =D199*Impostos!$C$15 -> 0 | F199: =D199*Impostos!$C$16 -> 0 | G199: =D199*Impostos!$C$17 -> 0 | H199: =D199*Impostos!$C$18 -> 0 | I199: =D199*Impostos!$C$19 -> 0 | J199: 0 | K199: 0
E200: =D200*Impostos!$C$15 -> 0 | F200: =D200*Impostos!$C$16 -> 0 | G200: =D200*Impostos!$C$17 -> 0 | H200: =D200*Impostos!$C$18 -> 0 | I200: =D200*Impostos!$C$19 -> 0 | J200: 0 | K200: 0
E201: =D201*Impostos!$C$15 -> 0 | F201: =D201*Impostos!$C$16 -> 0 | G201: =D201*Impostos!$C$17 -> 0 | H201: =D201*Impostos!$C$18 -> 0 | I201: =D201*Impostos!$C$19 -> 0 | J201: 0 | K201: 0
E202: =D202*Impostos!$C$15 -> 0 | F202: =D202*Impostos!$C$16 -> 0 | G202: =D202*Impostos!$C$17 -> 0 | H202: =D202*Impostos!$C$18 -> 0 | I202: =D202*Impostos!$C$19 -> 0 | J202: 0 | K202: 0
E203: =D203*Impostos!$C$15 -> 0 | F203: =D203*Impostos!$C$16 -> 0 | G203: =D203*Impostos!$C$17 -> 0 | H203: =D203*Impostos!$C$18 -> 0 | I203: =D203*Impostos!$C$19 -> 0 | J203: 0 | K203: 0
E204: =D204*Impostos!$C$15 -> 0 | F204: =D204*Impostos!$C$16 -> 0 | G204: =D204*Impostos!$C$17 -> 0 | H204: =D204*Impostos!$C$18 -> 0 | I204: =D204*Impostos!$C$19 -> 0 | J204: 0 | K204: 0
E205: =D205*Impostos!$C$15 -> 0 | F205: =D205*Impostos!$C$16 -> 0 | G205: =D205*Impostos!$C$17 -> 0 | H205: =D205*Impostos!$C$18 -> 0 | I205: =D205*Impostos!$C$19 -> 0 | J205: 0 | K205: 0
E206: =D206*Impostos!$C$15 -> 0 | F206: =D206*Impostos!$C$16 -> 0 | G206: =D206*Impostos!$C$17 -> 0 | H206: =D206*Impostos!$C$18 -> 0 | I206: =D206*Impostos!$C$19 -> 0 | J206: 0 | K206: 0
E207: =D207*Impostos!$C$15 -> 0 | F207: =D207*Impostos!$C$16 -> 0 | G207: =D207*Impostos!$C$17 -> 0 | H207: =D207*Impostos!$C$18 -> 0 | I207: =D207*Impostos!$C$19 -> 0 | J207: 0 | K207: 0
E208: =D208*Impostos!$C$15 -> 0 | F208: =D208*Impostos!$C$16 -> 0 | G208: =D208*Impostos!$C$17 -> 0 | H208: =D208*Impostos!$C$18 -> 0 | I208: =D208*Impostos!$C$19 -> 0 | J208: 0 | K208: 0 | N208: =IF(C208="","",MONTH(C208)) -> 
E209: =D209*Impostos!$C$15 -> 0 | F209: =D209*Impostos!$C$16 -> 0 | G209: =D209*Impostos!$C$17 -> 0 | H209: =D209*Impostos!$C$18 -> 0 | I209: =D209*Impostos!$C$19 -> 0 | J209: 0 | K209: 0
E210: =D210*Impostos!$C$15 -> 0 | F210: =D210*Impostos!$C$16 -> 0 | G210: =D210*Impostos!$C$17 -> 0 | H210: =D210*Impostos!$C$18 -> 0 | I210: =D210*Impostos!$C$19 -> 0 | J210: 0 | K210: 0
... 790 more rows

Sheet Dash
B11: Empresa: | D11: =Socios!C10 -> Empresa ABCDE
A30: Selecione um Sócio: | D30: Pedro Alves
A33: Total Previsto: | C33: =calc!N18 -> 48000
A37: Total Realizado: | C37: =calc!N19 -> 1860
B41: %: | C41: =calc!N20 -> 0.03875

Sheet Instruções

Sheet calc
A1: REALIZADO | B1: 1 | C1: 2 | D1: 3 | E1: 4 | F1: 5 | G1: 6 | H1: 7 | I1: 8 | J1: 9 | K1: 10 | L1: 11 | M1: 12
B2: Janeiro | C2: Fevereiro | D2: Março | E2: Abril | F2: Maio | G2: Junho | H2: Julho | I2: Agosto | J2: Setembro | K2: Outubro | L2: Novembro | M2: Dezembro | N2: Total
A3: =IF(Socios!B15="","",Socios!B15) -> João Paulo | B3: =SUMIFS(Historico!$K$15:$K$1000,Historico!$B$15:$B$1000,calc!$A3,Historico!$N$15:$N$1000,calc!B$1) -> 0 | C3: =SUMIFS(Historico!$K$15:$K$1000,Historico!$B$15:$B$1000,calc!$A3,Historico!$N$15:$N$1000,calc!C$1) -> 0 | D3: =SUMIFS(Historico!$K$15:$K$1000,Historico!$B$15:$B$1000,calc!$A3,Historico!$N$15:$N$1000,calc!D$1) -> 0 | E3: =SUMIFS(Historico!$K$15:$K$1000,Historico!$B$15:$B$1000,calc!$A3,Historico!$N$15:$N$1000,calc!E$1) -> 0 | F3: =SUMIFS(Historico!$K$15:$K$1000,Historico!$B$15:$B$1000,calc!$A3,Historico!$N$15:$N$1000,calc!F$1) -> 2790 | G3: =SUMIFS(Historico!$K$15:$K$1000,Historico!$B$15:$B$1000,calc!$A3,Historico!$N$15:$N$1000,calc!G$1) -> 0 | H3: =SUMIFS(Historico!$K$15:$K$1000,Historico!$B$15:$B$1000,calc!$A3,Historico!$N$15:$N$1000,calc!H$1) -> 1395 | I3: =SUMIFS(Historico!$K$15:$K$1000,Historico!$B$15:$B$1000,calc!$A3,Historico!$N$15:$N$1000,calc!I$1) -> 1860 | J3: =SUMIFS(Historico!$K$15:$K$1000,Historico!$B$15:$B$1000,calc!$A3,Historico!$N$15:$N$1000,calc!J$1) -> 0 | K3: =SUMIFS(Historico!$K$15:$K$1000,Historico!$B$15:$B$1000,calc!$A3,Historico!$N$15:$N$1000,calc!K$1) -> 0 | L3: =SUMIFS(Historico!$K$15:$K$1000,Historico!$B$15:$B$1000,calc!$A3,Historico!$N$15:$N$1000,calc!L$1) -> 0 | M3: =SUMIFS(Historico!$K$15:$K$1000,Historico!$B$15:$B$1000,calc!$A3,Historico!$N$15:$N$1000,calc!M$1) -> 0 | N3: =SUM(B3:M3) -> 6045
A4: =IF(Socios!B16="","",Socios!B16) -> Pedro Alves | B4: =SUMIFS(Historico!$K$15:$K$1000,Historico!$B$15:$B$1000,calc!$A4,Historico!$N$15:$N$1000,calc!B$1) -> 0 | C4: =SUMIFS(Historico!$K$15:$K$1000,Historico!$B$15:$B$1000,calc!$A4,Historico!$N$15:$N$1000,calc!C$1) -> 0 | D4: =SUMIFS(Historico!$K$15:$K$1000,Historico!$B$15:$B$1000,calc!$A4,Historico!$N$15:$N$1000,calc!D$1) -> 0 | E4: =SUMIFS(Historico!$K$15:$K$1000,Historico!$B$15:$B$1000,calc!$A4,Historico!$N$15:$N$1000,calc!E$1) -> 0 | F4: =SUMIFS(Historico!$K$15:$K$1000,Historico!$B$15:$B$1000,calc!$A4,Historico!$N$15:$N$1000,calc!F$1) -> 0 | G4: =SUMIFS(Historico!$K$15:$K$1000,Historico!$B$15:$B$1000,calc!$A4,Historico!$N$15:$N$1000,calc!G$1) -> 1860 | H4: =SUMIFS(Historico!$K$15:$K$1000,Historico!$B$15:$B$1000,calc!$A4,Historico!$N$15:$N$1000,calc!H$1) -> 0 | I4: =SUMIFS(Historico!$K$15:$K$1000,Historico!$B$15:$B$1000,calc!$A4,Historico!$N$15:$N$1000,calc!I$1) -> 0 | J4: =SUMIFS(Historico!$K$15:$K$1000,Historico!$B$15:$B$1000,calc!$A4,Historico!$N$15:$N$1000,calc!J$1) -> 0 | K4: =SUMIFS(Historico!$K$15:$K$1000,Historico!$B$15:$B$1000,calc!$A4,Historico!$N$15:$N$1000,calc!K$1) -> 0 | L4: =SUMIFS(Historico!$K$15:$K$1000,Historico!$B$15:$B$1000,calc!$A4,Historico!$N$15:$N$1000,calc!L$1) -> 0 | M4: =SUMIFS(Historico!$K$15:$K$1000,Historico!$B$15:$B$1000,calc!$A4,Historico!$N$15:$N$1000,calc!M$1) -> 0 | N4: =SUM(B4:M4) -> 1860
A5: =IF(Socios!B17="","",Socios!B17) -> Sócio 3 | B5: =SUMIFS(Historico!$K$15:$K$1000,Historico!$B$15:$B$1000,calc!$A5,Historico!$N$15:$N$1000,calc!B$1) -> 0 | C5: =SUMIFS(Historico!$K$15:$K$1000,Historico!$B$15:$B$1000,calc!$A5,Historico!$N$15:$N$1000,calc!C$1) -> 0 | D5: =SUMIFS(Historico!$K$15:$K$1000,Historico!$B$15:$B$1000,calc!$A5,Historico!$N$15:$N$1000,calc!D$1) -> 0 | E5: =SUMIFS(Historico!$K$15:$K$1000,Historico!$B$15:$B$1000,calc!$A5,Historico!$N$15:$N$1000,calc!E$1) -> 0 | F5: =SUMIFS(Historico!$K$15:$K$1000,Historico!$B$15:$B$1000,calc!$A5,Historico!$N$15:$N$1000,calc!F$1) -> 0 | G5: =SUMIFS(Historico!$K$15:$K$1000,Historico!$B$15:$B$1000,calc!$A5,Historico!$N$15:$N$1000,calc!G$1) -> 0 | H5: =SUMIFS(Historico!$K$15:$K$1000,Historico!$B$15:$B$1000,calc!$A5,Historico!$N$15:$N$1000,calc!H$1) -> 0 | I5: =SUMIFS(Historico!$K$15:$K$1000,Historico!$B$15:$B$1000,calc!$A5,Historico!$N$15:$N$1000,calc!I$1) -> 0 | J5: =SUMIFS(Historico!$K$15:$K$1000,Historico!$B$15:$B$1000,calc!$A5,Historico!$N$15:$N$1000,calc!J$1) -> 0 | K5: =SUMIFS(Historico!$K$15:$K$1000,Historico!$B$15:$B$1000,calc!$A5,Historico!$N$15:$N$1000,calc!K$1) -> 930 | L5: =SUMIFS(Historico!$K$15:$K$1000,Historico!$B$15:$B$1000,calc!$A5,Historico!$N$15:$N$1000,calc!L$1) -> 0 | M5: =SUMIFS(Historico!$K$15:$K$1000,Historico!$B$15:$B$1000,calc!$A5,Historico!$N$15:$N$1000,calc!M$1) -> 0 | N5: 930
A6: =IF(Socios!B18="","",Socios!B18) -> Sócio 4 | B6: =SUMIFS(Historico!$K$15:$K$1000,Historico!$B$15:$B$1000,calc!$A6,Historico!$N$15:$N$1000,calc!B$1) -> 0 | C6: =SUMIFS(Historico!$K$15:$K$1000,Historico!$B$15:$B$1000,calc!$A6,Historico!$N$15:$N$1000,calc!C$1) -> 0 | D6: =SUMIFS(Historico!$K$15:$K$1000,Historico!$B$15:$B$1000,calc!$A6,Historico!$N$15:$N$1000,calc!D$1) -> 0 | E6: =SUMIFS(Historico!$K$15:$K$1000,Historico!$B$15:$B$1000,calc!$A6,Historico!$N$15:$N$1000,calc!E$1) -> 0 | F6: =SUMIFS(Historico!$K$15:$K$1000,Historico!$B$15:$B$1000,calc!$A6,Historico!$N$15:$N$1000,calc!F$1) -> 0 | G6: =SUMIFS(Historico!$K$15:$K$1000,Historico!$B$15:$B$1000,calc!$A6,Historico!$N$15:$N$1000,calc!G$1) -> 0 | H6: =SUMIFS(Historico!$K$15:$K$1000,Historico!$B$15:$B$1000,calc!$A6,Historico!$N$15:$N$1000,calc!H$1) -> 0 | I6: =SUMIFS(Historico!$K$15:$K$1000,Historico!$B$15:$B$1000,calc!$A6,Historico!$N$15:$N$1000,calc!I$1) -> 0 | J6: =SUMIFS(Historico!$K$15:$K$1000,Historico!$B$15:$B$1000,calc!$A6,Historico!$N$15:$N$1000,calc!J$1) -> 0 | K6: =SUMIFS(Historico!$K$15:$K$1000,Historico!$B$15:$B$1000,calc!$A6,Historico!$N$15:$N$1000,calc!K$1) -> 930 | L6: =SUMIFS(Historico!$K$15:$K$1000,Historico!$B$15:$B$1000,calc!$A6,Historico!$N$15:$N$1000,calc!L$1) -> 0 | M6: =SUMIFS(Historico!$K$15:$K$1000,Historico!$B$15:$B$1000,calc!$A6,Historico!$N$15:$N$1000,calc!M$1) -> 0 | N6: 930
A7: =IF(Socios!B19="","",Socios!B19) -> Sócio 5 | B7: =SUMIFS(Historico!$K$15:$K$1000,Historico!$B$15:$B$1000,calc!$A7,Historico!$N$15:$N$1000,calc!B$1) -> 0 | C7: =SUMIFS(Historico!$K$15:$K$1000,Historico!$B$15:$B$1000,calc!$A7,Historico!$N$15:$N$1000,calc!C$1) -> 0 | D7: =SUMIFS(Historico!$K$15:$K$1000,Historico!$B$15:$B$1000,calc!$A7,Historico!$N$15:$N$1000,calc!D$1) -> 0 | E7: =SUMIFS(Historico!$K$15:$K$1000,Historico!$B$15:$B$1000,calc!$A7,Historico!$N$15:$N$1000,calc!E$1) -> 0 | F7: =SUMIFS(Historico!$K$15:$K$1000,Historico!$B$15:$B$1000,calc!$A7,Historico!$N$15:$N$1000,calc!F$1) -> 0 | G7: =SUMIFS(Historico!$K$15:$K$1000,Historico!$B$15:$B$1000,calc!$A7,Historico!$N$15:$N$1000,calc!G$1) -> 0 | H7: =SUMIFS(Historico!$K$15:$K$1000,Historico!$B$15:$B$1000,calc!$A7,Historico!$N$15:$N$1000,calc!H$1) -> 0 | I7: =SUMIFS(Historico!$K$15:$K$1000,Historico!$B$15:$B$1000,calc!$A7,Historico!$N$15:$N$1000,calc!I$1) -> 0 | J7: =SUMIFS(Historico!$K$15:$K$1000,Historico!$B$15:$B$1000,calc!$A7,Historico!$N$15:$N$1000,calc!J$1) -> 0 | K7: =SUMIFS(Historico!$K$15:$K$1000,Historico!$B$15:$B$1000,calc!$A7,Historico!$N$15:$N$1000,calc!K$1) -> 930 | L7: =SUMIFS(Historico!$K$15:$K$1000,Historico!$B$15:$B$1000,calc!$A7,Historico!$N$15:$N$1000,calc!L$1) -> 0 | M7: =SUMIFS(Historico!$K$15:$K$1000,Historico!$B$15:$B$1000,calc!$A7,Historico!$N$15:$N$1000,calc!M$1) -> 0 | N7: 930
A9: PREVISTO | B9: Janeiro | C9: Fevereiro | D9: Março | E9: Abril | F9: Maio | G9: Junho | H9: Julho | I9: Agosto | J9: Setembro | K9: Outubro | L9: Novembro | M9: Dezembro | N9: Total
A10: =A3 -> João Paulo | B10: =Socios!D15 -> 4000 | C10: =B10 -> 4000 | D10: =C10 -> 4000 | E10: 4000 | F10: 4000 | G10: 4000 | H10: 4000 | I10: 4000 | J10: 4000 | K10: 4000 | L10: 4000 | M10: 4000 | N10: =SUM(B10:M10) -> 48000
A11: =A4 -> Pedro Alves | B11: =Socios!D16 -> 4000 | C11: =B11 -> 4000 | D11: 4000 | E11: 4000 | F11: 4000 | G11: 4000 | H11: 4000 | I11: 4000 | J11: 4000 | K11: 4000 | L11: 4000 | M11: 4000 | N11: =SUM(B11:M11) -> 48000
A12: Sócio 3 | B12: =Socios!D17 -> 4000 | C12: 4000 | D12: 4000 | E12: 4000 | F12: 4000 | G12: 4000 | H12: 4000 | I12: 4000 | J12: 4000 | K12: 4000 | L12: 4000 | M12: 4000 | N12: 48000
A13: Sócio 4 | B13: =Socios!D18 -> 4000 | C13: 4000 | D13: 4000 | E13: 4000 | F13: 4000 | G13: 4000 | H13: 4000 | I13: 4000 | J13: 4000 | K13: 4000 | L13: 4000 | M13: 4000 | N13: 48000
A14: Sócio 5 | B14: =Socios!D19 -> 4000 | C14: 4000 | D14: 4000 | E14: 4000 | F14: 4000 | G14: 4000 | H14: 4000 | I14: 4000 | J14: 4000 | K14: 4000 | L14: 4000 | M14: 4000 | N14: 48000
A16: Selecionado | B16: 2 | C16: 3 | D16: 4 | E16: 5 | F16: 6 | G16: 7 | H16: 8 | I16: 9 | J16: 10 | K16: 11 | L16: 12 | M16: 13 | N16: 14
A17: =Dash!D30 -> Pedro Alves | B17: Janeiro | C17: Fevereiro | D17: Março | E17: Abril | F17: Maio | G17: Junho | H17: Julho | I17: Agosto | J17: Setembro | K17: Outubro | L17: Novembro | M17: Dezembro | N17: Total
A18: PREVISTO | B18: =IFERROR(VLOOKUP($A$17,$A$10:$N$14,B16,0),"") -> 4000 | C18: =IFERROR(VLOOKUP($A$17,$A$10:$N$14,C16,0),"") -> 4000 | D18: 4000 | E18: 4000 | F18: 4000 | G18: 4000 | H18: 4000 | I18: 4000 | J18: 4000 | K18: 4000 | L18: 4000 | M18: 4000 | N18: 48000
A19: REALIZADO | B19: =IFERROR(VLOOKUP($A$17,$A$3:$N$7,B16,0),"") -> 0 | C19: =IFERROR(VLOOKUP($A$17,$A$3:$N$7,C16,0),"") -> 0 | D19: 0 | E19: 0 | F19: 0 | G19: 1860 | H19: 0 | I19: 0 | J19: 0 | K19: 0 | L19: 0 | M19: 0 | N19: 1860
A20: % | B20: =IFERROR(B19/B18,"") -> 0 | C20: =IFERROR(C19/C18,"") -> 0 | D20: 0 | E20: 0 | F20: 0 | G20: 0.465 | H20: 0 | I20: 0 | J20: 0 | K20: 0 | L20: 0 | M20: 0 | N20: 0.03875
